{"text_format":"1","workbook":"xlsx","n_sheets":6,"sheets":["Sheet2","Facility Information","Subject Pollutants - Update","Declaration","NAICS","Sheet1"],"not_rendered":{"charts":0,"images":26,"macros":1,"external_links":0,"defined_names":16,"comments":0,"pivot_tables":0},"unopened":[],"bounds":{"document_bytes":16777216,"sheet_cells":100000,"rows_first":2000,"rows_last":500,"rows_between":2000,"halvings":0,"cell_chars":16384,"cell_head_chars":4096},"cells_cut":0,"cells_raw":0,"read":"row_number_cap","date_system":"1900"}

{"sheet":"Sheet2","index":0,"n_rows":39,"n_cols":18,"rows_kept":39,"cut":false,"hidden":true,"merged":[]}
["Community",null,null,null,null,null,"Subject Pollutants",null,null,null,"kg","mg/L",null,null,"P2 Options",null,null,"Media"]
[null,null,null,null,null,null,"Arsenic",null,null,null,"cu.m.","mg/kg",null,null,null,null,null,"Air"]
["North York",null,null,"Yes",null,null,"Cadmium",null,null,null,"cu.ft.","mg/sq.ft.",null,null,"Source Reduction",null,null,"Water"]
["Toronto",null,null,"No",null,null,"Cobalt",null,null,null,"Litres","mg/cu.m.",null,null,"Efficient use",null,null,"Solid"]
["York",null,null,"N/A",null,null,"Chromium",null,null,null,"sq.ft.",null,null,null,"Material Substitution"]
["East York",null,null,null,null,null,"Copper ",null,null,null,null,null,null,null,"Operating Efficiencies"]
["Etobicoke",null,null,null,null,null,"Mercury",null,null,null,null,null,null,null,"Product Design"]
["Scarborough",null,null,null,null,null,"Molybdenum",null,null,null,null,null,null,null,"Process Changes"]
[null,null,null,null,null,null,"Nickel",null,null,null,null,null,null,null,"Product Reformulation"]
[null,null,null,null,null,null,"Lead ",null,null,null,null,null,null,null,"Equipment Modification"]
[null,null,null,null,null,null,"Selenium"]
[null,null,null,null,null,null,"Zinc"]
[null,null,null,null,null,null,"Alkylphenol ethoxylates"]
[null,null,null,null,null,null,"DDT"]
[null,null,null,null,null,null,"Hexachlorobenzene"]
[null,null,null,null,null,null,"Mirex"]
[null,null,null,null,null,null,"PCBs"]
[null,null,null,null,null,null,"3,3’-dichlorobenzidine",null,null,null,null,"Confidential"]
[null,null,null,null,null,null,"Hexachlorocyclohexane",null,null,null,null,"Public"]
[null,null,null,null,null,null,"Pentachlorophenol",null,null,null,null,"Proprietary"]
[null,null,null,null,null,null,"Total PAHs"]
[null,null,null,null,null,null,"Benzene"]
[null,null,null,null,null,null,"Chloroform"]
[null,null,null,null,null,null,"1,2-dichlorobenzene"]
[null,null,null,null,null,null,"1,4-dichlorobenzene"]
[null,null,null,null,null,null,"Cis-1,2-dichloroethylene"]
[null,null,null,null,null,null,"Trans-1,3-dichloropropylene"]
[null,null,null,null,null,null,"Ethyl benzene"]
[null,null,null,null,null,null,"Methylene chloride"]
[null,null,null,null,null,null,"1,1,2,2-tetrachloroethane"]
[null,null,null,null,null,null,"Tetrachloroethylene"]
[null,null,null,null,null,null,"Toluene"]
[null,null,null,null,null,null,"Trichloroethylene"]
[null,null,null,null,null,null,"Total xylene"]
[null,null,null,null,null,null,"Di-n-butyl phthalate"]
[null,null,null,null,null,null,"Bis (2-ethylhexyl) phthalate"]
[null,null,null,null,null,null,"Alkylphenols"]
[null,null,null,null,null,null,"Aldrin/dieldrin"]
[null,null,null,null,null,null,"Chlordane"]

{"sheet":"Facility Information","index":1,"n_rows":32,"n_cols":9,"rows_kept":32,"cut":false,"hidden":false,"merged":[[15,4,15,7],[17,7,17,10],[18,7,18,10],[18,4,18,6],[1,4,1,10],[4,1,4,10],[2,1,2,2],[5,4,5,10],[3,1,3,10],[5,1,5,2],[12,1,12,3],[13,1,13,3],[6,1,6,3],[11,4,11,10],[11,1,11,3],[7,1,8,3],[9,1,10,3],[12,4,12,10],[13,4,13,10],[8,9,8,10],[22,7,22,10],[23,7,23,10],[6,4,6,10],[10,9,10,10],[9,4,9,10],[14,4,14,7],[16,1,16,10],[17,1,21,3],[19,4,19,6],[20,4,20,6],[21,4,21,6],[17,4,17,6],[19,7,19,10],[20,7,20,10],[21,7,21,10],[15,1,15,3],[14,8,14,10],[7,4,7,10],[31,1,31,8],[32,1,1048575,8],[29,1,30,10],[28,1,28,10],[26,4,26,6],[25,4,25,6],[22,1,26,3],[24,4,24,6],[23,4,23,6],[22,4,22,6],[27,1,27,10],[24,7,24,10],[25,7,25,10],[26,7,26,10]],"read":"row_number_cap"}
[]
[null,null,null,null,"Pollution Prevention (P2) Plan Update"]
[]
[null,"This P2 Plan Update form is designated by the City of Toronto for use by industrial sectors such as metal finishing, manufacturers, food processors, industrial laundry and other industrial sectors that the City of Toronto may specify from time to time, pursuant to Municipal Code Chapter 681. A completed P2 Plan Update must be submitted to Torornto Water by the end of the 3rd year, after the submission of a Pollution Prevention (P2) Plan and a copy kept at the facility for inspection by the City.If you would like a copy of this form in an alternate accessible format, please contact 311 (www.toronto.ca/311)."]
[null,"1.    Organization Information"]
[null,"Facility Name"]
[null,"Parent Organization (if applicable)"]
[null,"Facility Address"]
[null,null,null,null,"City",null,"Province",null,"Postal Code"]
[null,"Mailing Address (if different from above)"]
[null,null,null,null,"City",null,"Province",null,"Postal Code"]
[null,"NAICS Code                                                       (select the primary NAICS Code for the business)"]
[null,"Othe NAICS Code, if not listed above"]
[null,"MOECC Waste Generator Number"]
[null,"Number of Employees",null,null,"Days of Operation (i.e. Mon - Fri)"]
[null,"Hours of Operation (i. e. 9am - 7pm)",null,null,"     "]
[null,"2.    Business Contact Information"]
[null,"Senior management official responsible for the Pollution Prevention (P2) Plan",null,null," Name (First, Last)"]
[null,null,null,null," Position/Title"]
[null,null,null,null," Business Telephone Number"]
[null,null,null,null," Business Fax Number"]
[null,null,null,null," Business Email "]
[null,"Alternate Contact (if applicable)",null,null," Name (First, Last)"]
[null,null,null,null," Position/Title"]
[null,null,null,null," Business Telephone Number"]
[null,null,null,null," Business Fax Number"]
[null,null,null,null," Business Email"]
[null,"3.    Business Details"]
[null,"(Briefly describe details of major activities at this location with a brief description of processes that use, produce, or discharge subject pollutants. Attach a separate sheet if required.)"]
[]
[]
[null,"15-0042 2017-06"]

{"sheet":"Subject Pollutants - Update","index":2,"n_rows":35,"n_cols":11,"rows_kept":35,"cut":false,"hidden":false,"merged":[[26,2,26,4],[2,1,2,6],[8,1,8,6],[9,2,9,3],[9,4,10,4],[4,1,4,2],[5,1,5,2],[6,1,6,2],[19,1,19,2],[20,1,20,6],[34,1,34,3],[34,4,34,6],[9,5,10,5],[9,6,10,6],[21,2,21,4],[22,2,22,4],[27,2,27,4],[28,2,28,4],[29,2,29,4],[30,2,30,4],[31,2,31,4],[32,2,32,4],[33,2,33,4],[23,2,23,4],[24,2,24,4],[25,2,25,4]]}
[]
[null,null,null,null,null,null,"Pollution Prevention (P2) Plan Update"]
[null,"4.       Subject Pollutants (Please list subject pollutants of concern as submitted in your initial P2 Plan.)"]
[null,"Subject Pollutant","Was it targeted for P2 Planning?","Subject Pollutant","Was it targeted for P2 Planning?","Subject Pollutant","Was it targeted for P2 Planning?"]
[]
[]
[null,null,null,null,null,null,null,null,null,null," "]
[]
[null,"5.      Subject Pollutant (SP) Pollution Prevention Plan Update"]
[null,"Sublect Pollutant (SP)","SP discharged to sewers at the time the initial P2 Plan was prepared",null,"Current\naverage concentration discharged\n(mg/L)\n","3-Year reduction target\n(%)\n","Reduction achieved to date\n(%)\n"]
[null,null,"(Kg)","Average concentration\n (mg/L)\n"]
[]
[]
[]
[]
[]
[]
[]
[]
[null,"15-0042 2016-11 "]
[null,"6.      Pollution Prevention Option Implementation Update"]
[null,"Sublect Pollutant","P2 Option from your initial P2 Plan\n (If you have more than one option for a subject pollutant, use a separate line.)\n",null,null,"Have you implemented the option?","If not, do you plan to implement it in the next 3 years?"]
[]
[]
[]
[]
[]
[]
[]
[]
[]
[]
[]
[]
[null,"15-0042 2017-06"]

{"sheet":"Declaration","index":3,"n_rows":26,"n_cols":7,"rows_kept":26,"cut":false,"hidden":false,"merged":[[1,3,1,7],[3,1,3,7],[10,1,10,7],[24,1,24,7],[25,1,25,7],[5,1,6,5],[7,1,7,4],[11,1,11,2],[16,1,16,2],[14,3,14,4],[4,6,4,7],[8,1,8,7],[11,3,11,7],[12,3,12,7],[13,3,13,7],[14,5,14,7],[17,4,22,5],[17,6,22,6]]}
[]
[null,null,null,"Pollution Prevention (P2) Plan Update"]
[]
[null,"7   Other Information"]
[null,"Volume of effluent discharged to sewer in preceding 12 months (litres):"]
[null,"Are there any new/existing subject pollutants that you have not addressed in your P2 Plan? (If yes, you are required to submit an updated P2 Plan.)\n\n"]
[]
[null,"Any other pertinent information?"]
[]
[null,"8    Declaration"]
[null,"As the senior management official at this facility, I represent and declare that this Pollution Prevention (P2) Plan Update and all information and supporting documentation contained in or with this Plan comply with Chapter 681 and are accurate and complete to the best of my knowledge. I undertake to comply with this Plan and make it readily available for inspection at the subject premises by the representatives of the City of Toronto."]
[null,"NAME (FIRST, LAST)"]
[null,"TITLE"]
[null,"SIGNATURE"]
[null,"DATE (yyyy-mm-dd)"]
[null,"Submit the Completed Pollution Prevention (P2) Plan Update"]
[null,"By Mail",null,null,"By Fax",null,"By Email"]
[null,"     Manager",null,null,"416-696-3727",null,"P3Help@toronto.ca"]
[null,"     Environmental Monitoring & Protection"]
[null,"     Toronto Water"]
[null,"     30 Dee Ave"]
[null,"     Toronto, Ontario M9N 1S9"]
[]
[null,"Supporting Documentation"]
[null,"Please provide supporting documentation such as subject pollutant information from suppliers (no MSDS) and sample results used in the calculations of this P2 Plan Update. Additionally, should a company know of any subject pollutants in concentrations below Table 3 of the Sewers Bylaw (§ 681-5L), entitled \"Subject Pollutant Threshold Limits for Pollution Prevention Reporting\", include these in this P2 Plan Update submission, on a separate form."]
[null,"15-0042 2017-06"]

{"sheet":"NAICS","index":4,"n_rows":103,"n_cols":4,"rows_kept":103,"cut":false,"hidden":true,"merged":[]}
[]
[]
[null,"NAICS","INDUSTRIAL CATEGORY","P2 PLAN DUE DATE"]
[null,212299,"All Other Metal Ore Mining ","2001-06-30"]
[null,332999,"All Other Miscellaneous Fabricated Metal Product Manufacturing (pt)","2001-06-30"]
[null,327999,"All Other Miscellaneous Nonmetallic Mineral Product Manufacturing (pt)","2001-06-30"]
[null,212399,"All Other Nonmetallic Mineral Mining ","2001-06-30"]
[null,334412,"Bare Printed Circuit Board Manufacturing","2001-06-30"]
[null,331112,"Electrometallurgical Ferroalloy Product Manufacturing","2001-06-30"]
[null,334416,"Electronic Coil, Transformer, and Other Inductor Manufacturing ","2001-06-30"]
[null,332813,"Electroplating, Plating, Polishing, Anodizing, and Coloring ","2001-06-30"]
[null,332998,"Enameled Iron and Metal Sanitary Ware Manufacturing","2001-06-30"]
[null,332312,"Fabricated Structural Metal Manufacturing ","2001-06-30"]
[null,337125,"Household Furniture (except Wood and Metal) Manufacturing","2001-06-30"]
[null,42194,"Jewelry, Watch, Precious Stone, and Precious Metal Wholesalers","2001-06-30"]
[null,333512,"Machine Tool (Metal Cutting Types) Manufacturing","2001-06-30"]
[null,333513,"Machine Tool (Metal Forming Types) Manufacturing","2001-06-30"]
[null,332431,"Metal Can Manufacturing","2001-06-30"]
[null,332812,"Metal Coating, Engraving (except Jewelry and Silverware), and Allied Services to Manufacturers","2001-06-30"]
[null,332811,"Metal Heat Treating","2001-06-30"]
[null,337124,"Metal Household Furniture Manufacturing","2001-06-30"]
[null,332116,"Metal Stamping","2001-06-30"]
[null,33242,"Metal Tank (Heavy Gauge) Manufacturing","2001-06-30"]
[null,332321,"Metal Window and Door Manufacturing ","2001-06-30"]
[null,332321,"Metal Window and Door Manufacturing ","2001-06-30"]
[null,42151,"Metals Service Centers and Offices","2001-06-30"]
[null,33637,"Motor Vehicle Metal Stamping","2001-06-30"]
[null,331491,"Nonferrous Metal (except Copper and Aluminum) Rolling, Drawing, and Extruding (pt)","2001-06-30"]
[null,332323,"Ornamental and Architectural Metal Work Manufacturing ","2001-06-30"]
[null,332439,"Other Metal Container Manufacturing ","2001-06-30"]
[null,332919,"Other Metal Valve and Pipe Fitting Manufacturing ","2001-06-30"]
[null,333518,"Other Metalworking Machinery Manufacturing","2001-06-30"]
[null,332117,"Powder Metallurgy Part Manufacturing","2001-06-30"]
[null,332311,"Prefabricated Metal Building and Component Manufacturing","2001-06-30"]
[null,331419,"Primary Smelting and Refining of Nonferrous Metal ","2001-06-30"]
[null,23561,"Roofing, Siding, and Sheet Metal Contractors","2001-06-30"]
[null,331492,"Secondary Smelting, Refining, and Alloying of Nonferrous Metal (except Copper and Aluminum) (pt)","2001-06-30"]
[null,332322,"Sheet Metal Work Manufacturing","2001-06-30"]
[null,213114,"Support Activities for Metal Mining","2001-06-30"]
[null,213115,"Support Activities for Nonmetallic Minerals (except Fuels)","2001-06-30"]
[null,811198,"All Other Automotive Repair and Maintenance ","2001-12-31"]
[null,485999,"All Other Transit and Ground Passenger Transportation ","2001-12-31"]
[null,811121,"Automotive Body, Paint, and Interior Repair and Maintenance","2001-12-31"]
[null,811112,"Automotive Exhaust System Repair","2001-12-31"]
[null,811191,"Automotive Oil Change and Lubrication Shops","2001-12-31"]
[null,811113,"Automotive Transmission Repair","2001-12-31"]
[null,323117,"Books Printing","2001-12-31"]
[null,323112,"Commercial Flexographic Printing ","2001-12-31"]
[null,323111,"Commercial Gravure Printing ","2001-12-31"]
[null,323110,"Commercial Lithographic Printing ","2001-12-31"]
[null,323113,"Commercial Screen Printing ","2001-12-31"]
[null,339116,"Dental Laboratories","2001-12-31"]
[null,81232,"Dry cleaning and Laundry Services (except Coin-Operated) ","2001-12-31"]
[null,44711,"Gasoline Stations with Convenience Store","2001-12-31"]
[null,811111,"General Automotive Repair","2001-12-31"]
[null,62211,"General Medical and Surgical Hospitals ","2001-12-31"]
[null,48521,"Interurban and Rural Bus Transportation","2001-12-31"]
[null,323116,"Manifold Business Forms Printing ","2001-12-31"]
[null,621511,"Medical Laboratories","2001-12-31"]
[null,481212,"Nonscheduled Chartered Freight Air Transportation","2001-12-31"]
[null,481211,"Nonscheduled Chartered Passenger Air Transportation","2001-12-31"]
[null,812922,"One-Hour Photofinishing","2001-12-31"]
[null,811118,"Other Automotive Mechanical and Electrical Repair and Maintenance","2001-12-31"]
[null,323119,"Other Commercial Printing ","2001-12-31"]
[null,44719,"Other Gasoline Stations","2001-12-31"]
[null,48849,"Other Support Activities for Road Transportation ","2001-12-31"]
[null,812921,"Photofinishing Laboratories (except One-Hour)","2001-12-31"]
[null,32591,"Printing Ink Manufacturing","2001-12-31"]
[null,62221,"Psychiatric and Substance Abuse Hospitals ","2001-12-31"]
[null,323114,"Quick Printing ","2001-12-31"]
[null,48711,"Scenic and Sightseeing Transportation, Land","2001-12-31"]
[null,48799,"Scenic and Sightseeing Transportation, Other ","2001-12-31"]
[null,481112,"Scheduled Freight Air Transportation","2001-12-31"]
[null,481111,"Scheduled Passenger Air Transportation","2001-12-31"]
[null,48541,"School and Employee Bus Transportation ","2001-12-31"]
[null,485991,"Special Needs Transportation","2001-12-31"]
[null,62231,"Specialty (except Psychiatric and Substance Abuse) Hospitals","2001-12-31"]
[null,48821,"Support Activities for Rail Transportation ","2001-12-31"]
[null,54138,"Testing Laboratories","2001-12-31"]
[null,325188,"All Other Basic Inorganic Chemical Manufacturing ","2002-06-30"]
[null,325199,"All Other Basic Organic Chemical Manufacturing ","2002-06-30"]
[null,316999,"All Other Leather Good Manufacturing ","2002-06-30"]
[null,325998,"All Other Miscellaneous Chemical Product and Preparation Manufacturing ","2002-06-30"]
[null,324199,"All Other Petroleum and Coal Products Manufacturing ","2002-06-30"]
[null,326199,"All Other Plastics Product Manufacturing ","2002-06-30"]
[null,324121,"Asphalt Paving Mixture and Block Manufacturing","2002-06-30"]
[null,324122,"Asphalt Shingle and Coating Materials Manufacturing","2002-06-30"]
[null,325191,"Gum and Wood Chemical Manufacturing","2002-06-30"]
[null,31611,"Leather and Hide Tanning and Finishing ","2002-06-30"]
[null,42269,"Other Chemical and Allied Products Wholesalers","2002-06-30"]
[null,32551,"Paint and Coating Manufacturing ","2002-06-30"]
[null,316993,"Personal Leather Good (except Women's Handbag and Purse) Manufacturing","2002-06-30"]
[null,32532,"Pesticide and Other Agricultural Chemical Manufacturing","2002-06-30"]
[null,32511,"Petrochemical Manufacturing ","2002-06-30"]
[null,324191,"Petroleum Lubricating Oil and Grease Manufacturing","2002-06-30"]
[null,32411,"Petroleum Refineries","2002-06-30"]
[null,325412,"Pharmaceutical Preparation Manufacturing ","2002-06-30"]
[null,325992,"Photographic Film, Paper, Plate, and Chemical Manufacturing","2002-06-30"]
[null,32616,"Plastics Bottle Manufacturing","2002-06-30"]
[null,325211,"Plastics Material and Resin Manufacturing","2002-06-30"]
[null,326191,"Plastics Plumbing Fixture Manufacturing","2002-06-30"]
[null,325611,"Soap and Other Detergent Manufacturing ","2002-06-30"]
[null,62121,"Offices of Dentists","December 31. 2001"]

{"sheet":"Sheet1","index":5,"n_rows":116,"n_cols":6,"rows_kept":116,"cut":false,"hidden":true,"merged":[]}
[212299,"All Other Metal Ore Mining"]
[212399,"All Other Nonmetallic Mineral Mining",{"$f":"(A1&\" \"&B1)","v":"212299 All Other Metal Ore Mining"},null,"Arsenic (total)","Yes"]
[213114,"Support Activities for Metal Mining",{"$f":"(A2&\" \"&B2)","v":"212399 All Other Nonmetallic Mineral Mining"},null,"Cadmium (total)","No"]
[213115,"Support Activities for Nonmetallic Minerals (except Fuels)","213114 Support Activities for Metal Mining",null,"Chromium (hexavalent)"]
[327999,"All Other Miscellaneous Nonmetallic Mineral Product Manufacturing (pt)","213115 Support Activities for Nonmetallic Minerals (except Fuels)",null,"Chromium (total)"]
[331112,"Electrometallurgical Ferroalloy Product Manufacturing","327999 All Other Miscellaneous Nonmetallic Mineral Product Manufacturing (pt)",null,"Cobalt (total)"]
[331419,"Primary Smelting and Refining of Nonferrous Metal","331112 Electrometallurgical Ferroalloy Product Manufacturing",null,"Copper (total)"]
[331491,"Nonferrous Metal (except Copper and Aluminum) Rolling, Drawing, and Extruding (pt)","331419 Primary Smelting and Refining of Nonferrous Metal",null,"Lead (total)"]
[331492,"Secondary Smelting, Refining, and Alloying of Nonferrous Metal (except Copper and Aluminum) (pt)","331491 Nonferrous Metal (except Copper and Aluminum) Rolling, Drawing, and Extruding (pt)",null,"Mercury (total)"]
[332116,"Metal Stamping","331492 Secondary Smelting, Refining, and Alloying of Nonferrous Metal (except Copper and Aluminum) (pt)",null,"Molybdenum (total)"]
[332117,"Powder Metallurgy Part Manufacturing","332116 Metal Stamping",null,"Nickel (total)"]
[332311,"Prefabricated Metal Building and Component Manufacturing","332117 Powder Metallurgy Part Manufacturing",null,"Selenium (total)"]
[332312,"Fabricated Structural Metal Manufacturing","332311 Prefabricated Metal Building and Component Manufacturing",null,"Zinc (total)"]
[332321,"Metal Window and Door Manufacturing","332312 Fabricated Structural Metal Manufacturing",null,"1,1,2,2-tetrachloroethane"]
[332322,"Sheet Metal Work Manufacturing","332321 Metal Window and Door Manufacturing",null,"1,2-dichlorobenzene"]
[332323,"Ornamental and Architectural Metal Work Manufacturing ","332322 Sheet Metal Work Manufacturing",null,"1,4-dichlorobenzene"]
[332420,"Metal Tank (Heavy Gauge) Manufacturing","332323 Ornamental and Architectural Metal Work Manufacturing ",null,"3,3'-dichlorobenzidine"]
[332431,"Metal Can Manufacturing","332420 Metal Tank (Heavy Gauge) Manufacturing",null,"Benzene"]
[332439,"Other Metal Container Manufacturing","332431 Metal Can Manufacturing",null,"Bis (2-ethylhexyl) phthalate"]
[332811,"Metal Heat Treating","332439 Other Metal Container Manufacturing",null,"Chloroform"]
[332812,"Metal Coating, Engraving (except Jewelry and Silverware), and Allied Services to Manufacturers","332811 Metal Heat Treating",null,"Cis-1,2-dichloroethylene"]
[332813,"Electroplating, Plating, Polishing, Anodizing, and Coloring","332812 Metal Coating, Engraving (except Jewelry and Silverware), and Allied Services to Manufacturers",null,"Di-n-butyl phthalate"]
[332919,"Other Metal Valve and Pipe Fitting Manufacturing","332813 Electroplating, Plating, Polishing, Anodizing, and Coloring",null,"Ethyl benzene"]
[332998,"Enameled Iron and Metal Sanitary Ware Manufacturing","332919 Other Metal Valve and Pipe Fitting Manufacturing",null,"Methylene chloride"]
[332999,"All Other Miscellaneous Fabricated Metal Product Manufacturing (pt)","332998 Enameled Iron and Metal Sanitary Ware Manufacturing",null,"Nonylphenols"]
[333512,"Machine Tool (Metal Cutting Types) Manufacturing","332999 All Other Miscellaneous Fabricated Metal Product Manufacturing (pt)",null,"Nonylphenol ethoxylates"]
[333513,"Machine Tool (Metal Forming Types) Manufacturing","333512 Machine Tool (Metal Cutting Types) Manufacturing",null,"PCBs"]
[333518,"Other Metalworking Machinery Manufacturing","333513 Machine Tool (Metal Forming Types) Manufacturing",null,"Pentachlorophenol"]
[334412,"Bare Printed Circuit Board Manufacturing","333518 Other Metalworking Machinery Manufacturing",null,"Tetrachloroethylene"]
[334416,"Electronic Coil, Transformer, and Other Inductor Manufacturing","334412 Bare Printed Circuit Board Manufacturing",null,"Toluene"]
[33637,"Motor Vehicle Metal Stamping","334416 Electronic Coil, Transformer, and Other Inductor Manufacturing",null,"Total PAHs"]
[337124,"Metal Household Furniture Manufacturing","33637 Motor Vehicle Metal Stamping",null,"Trans-1,3-dichloropropylene"]
[337125,"Household Furniture (except Wood and Metal) Manufacturing","337124 Metal Household Furniture Manufacturing",null,"Trichloroethylene"]
[313111,"Yarn Spinning Mills","337125 Household Furniture (except Wood and Metal) Manufacturing",null,"Xylenes (total)"]
[313112,"Yarn Texturizing, Throwing, and Twisting Mills","313111 Yarn Spinning Mills"]
[313113,"Thread Mills","313112 Yarn Texturizing, Throwing, and Twisting Mills"]
[313210,"Broadwoven Fabric Mills","313113 Thread Mills"]
[313221,"Narrow Fabric Mills","313210 Broadwoven Fabric Mills"]
[313230,"Nonwoven Fabric Mills","313221 Narrow Fabric Mills"]
[313241,"Weft Knit Fabric Mills","313230 Nonwoven Fabric Mills"]
[313249,"Other Knit Fabric and Lace Mills","313241 Weft Knit Fabric Mills"]
[313311,"Broadwoven Fabric Finishing Mills","313249 Other Knit Fabric and Lace Mills"]
[313312,"Textile and Fabric Finishing (except Broadwoven Fabric) Mills","313311 Broadwoven Fabric Finishing Mills"]
[313320,"Fabric Coating Mills","313312 Textile and Fabric Finishing (except Broadwoven Fabric) Mills"]
[314110,"Carpet and Rug Mills","313320 Fabric Coating Mills"]
[314991,"Rope, Cordage, and Twine Mills","314110 Carpet and Rug Mills"]
[314992,"Tire Cord and Tire Fabric Mills","314991 Rope, Cordage, and Twine Mills"]
[314999,"All Other Miscellaneous Textile Product Mills","314992 Tire Cord and Tire Fabric Mills"]
[315111,"Sheer Hosiery Mills","314999 All Other Miscellaneous Textile Product Mills"]
[315119,"Other Hosiery and Sock Mills","315111 Sheer Hosiery Mills"]
[315191,"Outerwear Knitting Mills","315119 Other Hosiery and Sock Mills"]
[315192,"Underwear and Nightwear Knitting Mills","315191 Outerwear Knitting Mills"]
[323110,"Commercial Lithographic Printing","315192 Underwear and Nightwear Knitting Mills"]
[323111,"Commercial Gravure Printing","323110 Commercial Lithographic Printing"]
[323112,"Commercial Flexographic Printing ","323111 Commercial Gravure Printing"]
[323113,"Commercial Screen Printing ","323112 Commercial Flexographic Printing "]
[323114,"Quick Printing","323113 Commercial Screen Printing "]
[323116,"Manifold Business Forms Printing","323114 Quick Printing"]
[323117,"Books Printing","323116 Manifold Business Forms Printing"]
[323119,"Other Commercial Printing","323117 Books Printing"]
[325910,"Printing Ink Manufacturing","323119 Other Commercial Printing"]
[339116,"Dental Laboratories","325910 Printing Ink Manufacturing"]
[447110,"Gasoline Stations with Convenience Store","339116 Dental Laboratories"]
[447190,"Other Gasoline Stations","447110 Gasoline Stations with Convenience Store"]
[481111,"Scheduled Passenger Air Transportation","447190 Other Gasoline Stations"]
[481112,"Scheduled Freight Air Transportation","481111 Scheduled Passenger Air Transportation"]
[481211,"Nonscheduled Chartered Passenger Air Transportation",{"$f":"(A66&\" \"&B66)","v":"481112 Scheduled Freight Air Transportation"}]
[481212,"Nonscheduled Chartered Freight Air Transportation","481211 Nonscheduled Chartered Passenger Air Transportation"]
[485210,"Interurban and Rural Bus Transportation","481212 Nonscheduled Chartered Freight Air Transportation"]
[485410,"School and Employee Bus Transportation","485210 Interurban and Rural Bus Transportation"]
[485991,"Special Needs Transportation","485410 School and Employee Bus Transportation"]
[485999,"All Other Transit and Ground Passenger Transportation","485991 Special Needs Transportation"]
[487110,"Scenic and Sightseeing Transportation, Land","485999 All Other Transit and Ground Passenger Transportation"]
[487990,"Scenic and Sightseeing Transportation, Other","487110 Scenic and Sightseeing Transportation, Land"]
[488210,"Support Activities for Rail Transportation ","487990 Scenic and Sightseeing Transportation, Other"]
[488490,"Other Support Activities for Road Transportation","488210 Support Activities for Rail Transportation "]
[541380,"Testing Laboratories","488490 Other Support Activities for Road Transportation"]
[621210,"Offices of Dentists","541380 Testing Laboratories"]
[621511,"Medical Laboratories","621210 Offices of Dentists"]
[622110,"General Medical and Surgical Hospitals","621511 Medical Laboratories"]
[622210,"Psychiatric and Substance Abuse Hospitals ","622110 General Medical and Surgical Hospitals"]
[622310,"Specialty (except Psychiatric and Substance Abuse) Hospitals","622210 Psychiatric and Substance Abuse Hospitals "]
[811111,"General Automotive Repair","622310 Specialty (except Psychiatric and Substance Abuse) Hospitals"]
[811112,"Automotive Exhaust System Repair","811111 General Automotive Repair"]
[811113,"Automotive Transmission Repair","811112 Automotive Exhaust System Repair"]
[811118,"Other Automotive Mechanical and Electrical Repair and Maintenance","811113 Automotive Transmission Repair"]
[811121,"Automotive Body, Paint, and Interior Repair and Maintenance","811118 Other Automotive Mechanical and Electrical Repair and Maintenance"]
[811191,"Automotive Oil Change and Lubrication Shops","811121 Automotive Body, Paint, and Interior Repair and Maintenance"]
[811192,"Car Washes","811191 Automotive Oil Change and Lubrication Shops"]
[811198,"All Other Automotive Repair and Maintenance","811192 Car Washes"]
[812320,"Dry cleaning and Laundry Services (except Coin-Operated)","811198 All Other Automotive Repair and Maintenance"]
[812921,"Photofinishing Laboratories (except One-Hour)","812320 Dry cleaning and Laundry Services (except Coin-Operated)"]
[812922,"One-Hour Photofinishing","812921 Photofinishing Laboratories (except One-Hour)"]
[31611,"Leather and Hide Tanning and Finishing","812922 One-Hour Photofinishing"]
[316993,"Personal Leather Good (except Women's Handbag and Purse) Manufacturing","31611 Leather and Hide Tanning and Finishing"]
[316999,"All Other Leather Good Manufacturing ","316993 Personal Leather Good (except Women's Handbag and Purse) Manufacturing"]
[324110,"Petroleum Refineries","316999 All Other Leather Good Manufacturing "]
[324121,"Asphalt Paving Mixture and Block Manufacturing","324110 Petroleum Refineries"]
[324122,"Asphalt Shingle and Coating Materials Manufacturing","324121 Asphalt Paving Mixture and Block Manufacturing"]
[324191,"Petroleum Lubricating Oil and Grease Manufacturing","324122 Asphalt Shingle and Coating Materials Manufacturing"]
[324199,"All Other Petroleum and Coal Products Manufacturing ","324191 Petroleum Lubricating Oil and Grease Manufacturing"]
[325110,"Petrochemical Manufacturing","324199 All Other Petroleum and Coal Products Manufacturing "]
[325188,"All Other Basic Inorganic Chemical Manufacturing","325110 Petrochemical Manufacturing"]
[325191,"Gum and Wood Chemical Manufacturing","325188 All Other Basic Inorganic Chemical Manufacturing"]
[325199,"All Other Basic Organic Chemical Manufacturing","325191 Gum and Wood Chemical Manufacturing"]
[325211,"Plastics Material and Resin Manufacturing","325199 All Other Basic Organic Chemical Manufacturing"]
[325320,"Pesticide and Other Agricultural Chemical Manufacturing","325211 Plastics Material and Resin Manufacturing"]
[325412,"Pharmaceutical Preparation Manufacturing","325320 Pesticide and Other Agricultural Chemical Manufacturing"]
[325510,"Paint and Coating Manufacturing","325412 Pharmaceutical Preparation Manufacturing"]
[325611,"Soap and Other Detergent Manufacturing ","325510 Paint and Coating Manufacturing"]
[325992,"Photographic Film, Paper, Plate, and Chemical Manufacturing","325611 Soap and Other Detergent Manufacturing "]
[325998,"All Other Miscellaneous Chemical Product and Preparation Manufacturing","325992 Photographic Film, Paper, Plate, and Chemical Manufacturing"]
[326160,"Plastics Bottle Manufacturing","325998 All Other Miscellaneous Chemical Product and Preparation Manufacturing"]
[326191,"Plastics Plumbing Fixture Manufacturing","326160 Plastics Bottle Manufacturing"]
[326199,"All Other Plastics Product Manufacturing","326191 Plastics Plumbing Fixture Manufacturing"]
[null,null,"326199 All Other Plastics Product Manufacturing"]